Cogmind - Beta 14 @@@ ROGUE MODE // 2024.11.11 @ 05:55:37 Player: Serule Result: Destroyed by TC-5KN(R) with Subdweller Laser Performance ------------- Evolutions (0) 0 Regions Visited (3) 600 Robots Destroyed (16) 80 Value Destroyed (123) 123 Prototype IDs (0) 0 Alien Tech Used (0) 0 Bonus (0) 0 TOTAL SCORE: 803 Bonus ------- None Cogmind --------- Core Integrity 0/250 Matter 260/300 Energy 156/160 System Corruption 0% Temperature Cool (6) Movement Walking (130) Location -10/Subcaves Parts ------- > --- POWER (1) -------- Light Nuclear Core > --- PROPULSION (2) --- Titanium Leg Armored Wheel > --- UTILITY (2) ------ Improved Terrain Scanner Core Shielding > --- WEAPON (2) ------- Light Assault Rifle Battle Cannon > --- INVENTORY (5) ---- High-capacity Matter Pod (95) Scrap Shield Assault Rifle Mining Laser Peak State ------------ > --- POWER ------------ Light Nuclear Core > --- PROPULSION ------- Titanium Leg Armored Wheel > --- UTILITY ---------- Improved Terrain Scanner Improved Propulsion Shielding > --- WEAPON ----------- Assault Rifle Mining Claw > --- INVENTORY -------- Small Matter Pod High-capacity Matter Pod High-capacity Matter Pod Core Shielding Light Assault Rifle [Rating: 16] Favorites ----------- Power Ion Engine Engine Ion Engine Power Core Light Nuclear Core Propulsion Aluminum Leg Leg Aluminum Leg Wheel Armored Wheel Utility Improved Terrain Scanner Device Improved Terrain Scanner Storage Small Storage Unit Protection Improved Propulsion Shielding Weapon Light Assault Rifle Energy Gun Medium Laser Ballistic Gun Light Assault Rifle Ballistic Cannon Battle Cannon Special Weapon Mining Laser Slashing Weapon Mining Claw Build | -11 -10 -10 -10 ------- Run | Yrd Mat Min Sub Slots Evolved . | . . . . Power . | . . . . Propulsion . | . . . . Utility . | . . . . Weapon . | . . . . Parts Attached 30 | 10 2 13 5 Power 4 | 1 . 3 . Engine 3 | 1 . 2 . Core 1 | . . 1 . Reactor . | . . . . Propulsion 5 | 2 . 3 . Treads . | . . . . Leg 3 | 2 . 1 . Wheel 2 | . . 2 . Hover . | . . . . Flight . | . . . . Utility 10 | 4 . 3 3 Device 6 | 3 . 2 1 Storage 1 | 1 . . . Processor . | . . . . Hackware . | . . . . Protection 3 | . . 1 2 Artifact . | . . . . Weapon 11 | 3 2 4 2 Energy Gun 3 | 2 1 . . Energy Cannon . | . . . . Ballistic Gun 5 | 1 1 2 1 Ballistic Cannon 1 | . . . 1 Launcher . | . . . . Special Weapon 1 | . . 1 . Impact Weapon . | . . . . Slashing Weapon 1 | . . 1 . Piercing Weapon . | . . . . Special Melee Weapon . | . . . . Unidentified Prototypes . | . . . . Parts Lost 8 | . 7 1 . Power 1 | . 1 . . Propulsion 2 | . 2 . . Utility 2 | . 1 1 . Weapon 3 | . 3 . . Highest Loss Streak 7 | . 7 1 . To Critical Strikes . | . . . . Average Slot Usage (%) 89 | . 94 85 92 Engine 7 | . 13 5 . Core 5 | . . 6 14 Leg 13 | . 26 6 14 Wheel 12 | . . 19 14 Device 14 | . 13 17 8 Storage 4 | . 13 . . Protection 5 | . . 6 12 Energy Gun 4 | . 14 . . Ballistic Gun 16 | . 12 16 25 Slashing Weapon 3 | . . 6 . Peak Build Rating 16 | 10 10 16 16 Average Rating 10 | 6 9 11 14 On Entrance 6 | . 10 . 16 Naked Turns 9 | . 9 . . Heaviest Build 26 | 14 14 12 26 Greatest Support 28 | 20 20 28 17 Greatest Overweight (x) 3 | 3 1 . 1 Average Overweight (x) . | . . . . Largest Inventory Capacity 8 | 8 8 5 5 Average Capacity 6 | 7 7 5 5 Most Carried 8 | 8 8 5 5 Average Carried 5 | 5 7 4 4 Final Capacity 8 | 8 5 5 5 Final Carried 8 | 8 5 5 5 Class Distribution -------------------- 100% | Mutant Dominant Class ---------------- Mutant | -10/Materials Mutant | -10/Mines Mutant | -10/Subcaves Resources | -11 -10 -10 -10 ----------- Run | Yrd Mat Min Sub Matter Collected 664 | 329 13 218 104 Remotely 129 | 12 . 117 . Salvage Created 341 | 213 46 82 . Parts 35 | 19 5 11 . Haulers Intercepted . | . . . . Recyclers Shooed 2 | . 1 1 . Parts Field Recycled . | . . . . Retrieved Matter . | . . . . Parts Self-Destructed . | . . . . Prevented . | . . . . Kills | -11 -10 -10 -10 ------- Run | Yrd Mat Min Sub Combat Hostiles Destroyed 6 | . 3 3 . Guns 6 | . 3 3 . Classes Destroyed 4 | 3 1 . . Worker 1 | 1 . . . Tunneler 8 | 6 . 2 . Recycler 1 | 1 . . . Swarmer 6 | . 3 3 . Best Kill Streak 4 | 4 3 3 . Combat Bots Only 3 | . 3 3 . Max Kills in Single Turn 1 | 1 1 1 . Gunslinging . | . . . . Exploded . | . . . . Melee . | . . . . Uniques/NPCs Destroyed . | . . . . Combat | -11 -10 -10 -10 -------- Run | Yrd Mat Min Sub Hostile Shots Fired 152 | . 119 24 9 Missed 42 | . 32 7 3 Damage Taken 1008 | . 758 123 127 Core 253 | . 197 38 18 Absorbed by Shields . | . . . . Redirected to Shielding 4 | . . . 4 Core Remaining (%) 100 | 100 . . . Volleys Fired 82 | 29 18 30 5 Largest 2 | 2 2 2 2 Hottest 120 | 70 90 120 59 Shots Fired 137 | 58 33 36 10 Gun 128 | 58 33 32 5 Cannon 5 | . . . 5 Launcher . | . . . . Special 4 | . . 4 . Kinetic 80 | 29 9 32 10 Thermal 57 | 29 24 4 . Explosive . | . . . . Electromagnetic . | . . . . Robot Hit Streak 5 | 5 5 4 4 Robot Miss Streak 4 | 4 3 3 1 Penetration Max . | . . . . Secondary Targets 1 | . 1 . . Max Gunslinging Chain 1 | . 1 . . Shots Hit Robots 74 | 34 18 14 8 Core Hits 28 | 12 8 6 2 Critical Kills 1 | 1 . . . Critical Parts Destroyed . | . . . . Critical Strikes 4 | 2 2 . . Burn 3 | 1 2 . . Destroy 1 | 1 . . . Melee Attacks . | . . . . Impact . | . . . . Slashing . | . . . . Piercing . | . . . . Sneak Attacks . | . . . . Combat Hostiles . | . . . . Follow-up Attacks . | . . . . Damage Inflicted 903 | 347 228 195 133 Guns 803 | 347 226 195 35 Cannons 98 | . . . 98 Explosions . | . . . . Melee . | . . . . Ramming 2 | . 2 . . Kinetic 510 | 146 36 195 133 Thermal 391 | 201 190 . . Explosive . | . . . . Electromagnetic . | . . . . Impact . | . . . . Slashing . | . . . . Piercing . | . . . . Highest Corruption . | . . . . Average Corruption . | . . . . Corruption Purged . | . . . . Corruption Blocked . | . . . . Overload Shots . | . . . . Overflow Damage . | . . . . Projectiles . | . . . . Explosions . | . . . . Melee . | . . . . Knockbacks 2 | . . . 2 Impact . | . . . . Kinetic 1 | . . . 1 Secondary 1 | . . . 1 Self-Inflicted Damage . | . . . . Shots . | . . . . Rammed . | . . . . Targets Rammed 1 | . 1 . . Kicked 1 | . 1 . . Crushed . | . . . . Highest Temperature 235 | 114 235 122 . Average Temperature 60 | 39 95 52 . Received Heat Transfer 141 | . 111 . 30 Siege Activations . | . . . . Robots Corrupted . | . . . . Combat Hostiles . | . . . . Parts Fried . | . . . . Impact Corruptions . | . . . . Robots Melted . | . . . . Combat Hostiles . | . . . . Parts Melted 2 | 1 1 . . Heat Transferred 1334 | 666 668 . . Parts Sabotaged . | . . . . Parts Stolen . | . . . . Parts Stripped . | . . . . Power Chain Reactions . | . . . . Alert | -11 -10 -10 -10 ------- Run | Yrd Mat Min Sub Peak Influence 141 | 40 141 92 . Initial 27 | . 26 27 . Average 42 | 14 48 55 . Maximum Alert Level . | . . . . Low Security (%) 100 | 100 100 100 . Level 1 . | . . . . Level 2 . | . . . . Level 3 . | . . . . Level 4 . | . . . . Level 5 . | . . . . High Security . | . . . . Max Security . | . . . . Squads Dispatched 2 | . 1 1 . Investigation 1 | . . 1 . Extermination . | . . . . Reinforcement 1 | . 1 . . Assault . | . . . . Garrison . | . . . . Intercept . | . . . . Searches Triggered . | . . . . Construction Impeded . | . . . . Haulers Reinforced . | . . . . Active Scanning Responses . | . . . . Cargo Convoy Interrupts . | . . . . Stealth | -11 -10 -10 -10 --------- Run | Yrd Mat Min Sub Distress Signals 1 | . 1 . . Communications Jammed . | . . . . Distress Signals . | . . . . Times Spotted 23 | . 13 3 7 Peak Tracking Total 8 | . 7 3 8 Tactical Retreats . | . . . . Traps | -11 -10 -10 -10 ------- Run | Yrd Mat Min Sub Traps Triggered . | . . . . Indirectly . | . . . . Trap Hack Attempts . | . . . . Triggered . | . . . . Disarmed . | . . . . Reprogrammed . | . . . . Reused . | . . . . Traps Extracted . | . . . . Installed . | . . . . Triggered . | . . . . Machines | -11 -10 -10 -10 ---------- Run | Yrd Mat Min Sub Machines Disabled . | . . . . Max in Single Turn . | . . . . Machines Repaired . | . . . . Machines Dismantled . | . . . . Machines Sabotaged . | . . . . Overloaded Fab Kills . | . . . . Hacking | -11 -10 -10 -10 --------- Run | Yrd Mat Min Sub Machines Accessed 2 | . 1 1 . Terminals . | . . . . Fabricators . | . . . . Repair Stations . | . . . . Recycling Units 1 | . 1 . . Scanalyzers . | . . . . Garrison Access . | . . . . Total Hacks 3 | . 2 1 . Successful 1 | . . 1 . Failed 2 | . 2 . . Catastrophic . | . . . . Database Lockouts . | . . . . Manual . | . . . . Terminals . | . . . . Fabricators . | . . . . Repair Stations . | . . . . Recycling Units 2 | . 2 . . Scanalyzers . | . . . . Garrison Access . | . . . . Terminal Hacks 1 | . . 1 . Open Door 1 | . . 1 . Fabricator Hacks . | . . . . Repair Station Hacks . | . . . . Recycling Unit Hacks . | . . . . Scanalyzer . | . . . . Garrison Access Hacks . | . . . . Unauthorized Hacks . | . . . . Terminals . | . . . . Fabricators . | . . . . Repair Stations . | . . . . Recycling Units . | . . . . Scanalyzers . | . . . . Garrison Access . | . . . . Data Cores Recovered . | . . . . Used . | . . . . Hacking Detections 1 | . 1 . . Full Trace Events . | . . . . Feedback Events . | . . . . Feedback Blocked . | . . . . Robot Schematics Acquired . | . . . . Robots Built . | . . . . Authchips . | . . . . Time . | . . . . Total Robot Build Rating . | . . . . Part Schematics Acquired . | . . . . Parts Built . | . . . . Authchips . | . . . . Time . | . . . . Total Part Build Rating . | . . . . Parts Repaired . | . . . . Time . | . . . . Parts Recycled . | . . . . Recycled Matter . | . . . . Retrieved Matter . | . . . . Retrieved Components . | . . . . Parts Scanalyzed . | . . . . Part Schematics Acquired . | . . . . Parts Damaged . | . . . . Bothacking | -11 -10 -10 -10 ------------ Run | Yrd Mat Min Sub Used RIF Installer . | . . . . Robots Hacked . | . . . . Non-combat . | . . . . Combat . | . . . . Robot Hacks Applied . | . . . . Relay Couplers Released . | . . . . Fabnet Peak Effective % . | . . . . Robots Rewired . | . . . . Allies Hacked . | . . . . Hacks Repelled . | . . . . Allies | -11 -10 -10 -10 -------- Run | Yrd Mat Min Sub Total Allies . | . . . . Largest Group . | . . . . Highest-Rated Group . | . . . . Highest-Rated Ally . | . . . . Total Orders . | . . . . Ally Attacks . | . . . . Total Damage . | . . . . Kills . | . . . . Allies Corrupted . | . . . . Allies Melted . | . . . . Intel | -11 -10 -10 -10 ------- Run | Yrd Mat Min Sub Robot Analysis Total . | . . . . Derelict Logs Recovered . | . . . . Drone Launches . | . . . . Drone Recoveries . | . . . . Exploration | -11 -10 -10 -10 ------------- Run | Yrd Mat Min Sub Turns Passed 1206 | 281 292 510 123 Spaces Moved 729 | 127 162 386 54 Core 40 | 20 20 . . Treads . | . . . . Legs 450 | 107 142 147 54 Wheels 239 | . . 239 . Hover . | . . . . Flight . | . . . . Fastest Speed 50 | 50 50 90 130 Average Speed 114 | 121 111 107 162 Slowest Speed 200 | 200 120 130 200 Overloaded Moves . | . . . . Propulsion Burnouts . | . . . . Robots Hopped . | . . . . Cave-ins Triggered . | . . . . Exploration Rate (%) 23 | 8 35 41 8 Regions Visited 3 Branch Regions 2 Pre-discovered Areas . | . . . . Known Exits Taken . | . . . . Unknown Exits Taken 3 | 1 1 1 . Scrap Searched 3 | . . 1 2 Spaces Dug . | . . . . Terrain Destroyed 2 | . . 2 . Melee . | . . . . Projectile 2 | . . 2 . AOE . | . . . . Terrain Rammed . | . . . . Walls Destroyed . | . . . . Machines Disabled . | . . . . Actions | -11 -10 -10 -10 --------- Run | Yrd Mat Min Sub Total 965 | 200 242 439 84 Wait 80 | 18 52 . 10 Move 726 | 126 161 385 54 Hop . | . . . . Pick Up 31 | 16 4 7 4 Fast Attach 4 | . . 3 1 Attach 16 | 7 1 6 2 Detach . | . . . . Swap 10 | 3 1 4 2 Drop 15 | 1 4 4 6 Fire 82 | 29 18 30 5 Melee . | . . . . Ram . | . . . . Kick 1 | . 1 . . Crush . | . . . . Escape Stasis . | . . . . Rewire . | . . . . Trap . | . . . . Miscellaneous . | . . . . Route ------- -11/Scrapyard -10/Materials (discovered 2 exits: [*Mat] / *Min) -10/Mines (discovered 2 exits: [*Mat] / [*Sub]) -10/Subcaves History --------- Turn | Location | Event 21 | -11/Scrapyard | Discovered new exit (range 16) 282 | -11/Scrapyard | Entered Materials 302 | -10/Materials | Build established: Mutant 449 | -10/Materials | Discovered new exit (range 10) 565 | -10/Materials | Core integrity fell below 50% 565 | -10/Materials | Released all parts (1) 571 | -10/Materials | Discovered new exit (range 7) 574 | -10/Materials | Entered Mines 594 | -10/Mines | Lost 7 parts (1p2n1u3w) 602 | -10/Mines | Discovered new exit (range 6) 678 | -10/Mines | Core integrity fell below 20% 840 | -10/Mines | Discovered new exit (range 9) 850 | -10/Mines | Met a Derelict shopkeep closing up shop 1084 | -10/Mines | Entered Subcaves 1183 | -10/Subcaves | Ambushed by swarm of Subdwellers 1207 | -10/Subcaves | Destroyed by TC-5KN(R) with Subdweller Laser Last Messages --------------- Subatomizers dissect the Sml. Matter Pod. Dropped Scrap Shield. Dropped Hcp. Matter Pod. Acquired Scrap Shield. Acquired Hcp. Matter Pod. Searching scrap... Found Mak. Light Armor Plating. Found 46 Matter. Acquired 46 matter. Searching scrap... Found Battle Cannon. Found Sub. Beam Cannon. Found 58 Matter. Acquired 58 matter. Dropped Hcp. Matter Pod. Acquired Battle Cannon. TC-5KN(R): "SUBSUUUUUB!" 2D-DA1(g) destroyed. TC-5KN(R) affixes Scrap Shield Fragment to Scrap Shield. B7-G7V(R) knocked back. Map ----- +----------------------------------------------------+ | ?????????????????????????????????????????????????? | | ?????????????????????????????????????????????????? | | ?????????????????????????????????????????????????? | | ?????????????????????????????????????????????????? | | ?????????????????????????????????????????????????? | | ?????????????????????????????????????????????????? | | ?????????????????????????????????????????????????? | | ?????????????????????????????????????????????????? | | ????????????????????????????????????# ??????????? | | ??????????????????????????????????### ??????????? | | ?????????????????????????????????? ??????????? | | ??????????????????????????????????? ??????????? | | ??????????????????????????????????## #??????????? | | ??????????????????????????????????? #####?????? | | ?????????????????????#??????????#### ## ##????? | | ???????????????????????????##??## #????? | | ???????????????#?#??#?????#????# #????? | | ??????????????????????????????## #????? | | ?????????????????????????????## #?????? | | ??????????????????????????#?## #?# #?????? | | ??????????????????????????#?# ##?# ######? | | ??????????????????????######## ### ## ## | | ??????????????????????#"!## | | ??????????????????????#] ### ! ## | | ??????????????????????#!## #R[!/! ### # | | ??????????????????????#&#@%!RR!%= ####?# ## | | ??????????????????????#